bitfinex-derivatives/quotes_BTCF0:USTF0_20240929
["timestamp","ask_amount","ask_price","bid_price","bid_amount"]
[1727609298618,0.15225842,65699.0,65698.0,0.46780579]
[1727609299115,0.15225842,65699.0,65698.0,0.46780487]
[1727609299528,0.15225842,65699.0,65698.0,0.10700487]
[1727609299902,0.15225842,65699.0,65698.0,0.46780487]
[1727609303315,0.18287287,65699.0,65698.0,0.3628]
[1727609303514,0.22014023,65699.0,65698.0,0.3628]
[1727609303812,0.30452208,65699.0,65698.0,0.3628]
[1727609304023,0.41911599,65699.0,65698.0,0.3628]
[1727609305520,0.26685757,65699.0,65698.0,0.3628]
[1727609305812,0.15226366,65699.0,65698.0,0.3628]
[1727609307814,0.21226366,65699.0,65698.0,0.3628]
[1727609308114,0.32685757,65699.0,65698.0,0.3628]
[1727609308617,0.32687975,65699.0,65698.0,0.3628]
[1727609311421,0.21226366,65699.0,65698.0,0.59298768]
[1727609312532,0.21226366,65699.0,65698.0,0.10701446]
[1727609312825,0.21226366,65699.0,65698.0,0.46781446]
[1727609313524,0.21226366,65699.0,65698.0,0.46780775]
[1727609315427,0.21226366,65699.0,65698.0,0.10700775]
[1727609315619,0.06,65699.0,65698.0,0.46780775]
[1727609316017,0.0004,65702.0,65698.0,0.46780775]
[1727609316215,0.1004,65702.0,65699.0,0.19597986]
[1727609316415,0.1004,65702.0,65700.0,0.10500775]
[1727609316616,0.1004,65702.0,65701.0,0.10500775]
[1727609317915,0.1004,65702.0,65701.0,0.10600775]
[1727609318516,0.1004,65702.0,65701.0,0.001]
[1727609318729,0.1004,65702.0,65701.0,0.002]
[1727609320624,0.1004,65702.0,65701.0,0.001]
[1727609320824,0.1004,65702.0,65701.0,0.002]
[1727609326522,0.2149726,65702.0,65701.0,0.002]
[1727609329019,0.2149726,65702.0,65697.0,0.0035]
[1727609329332,0.3612,65698.0,65697.0,0.0035]
[1727609329524,0.5857726,65698.0,65697.0,0.0035]
[1727609330033,0.75326657,65698.0,65697.0,0.0035]
[1727609330331,0.5857726,65698.0,65697.0,0.0045]
[1727609331034,0.5857726,65698.0,65697.0,0.0055]
[1727609331635,0.5857726,65698.0,65697.0,0.0045]
[1727609331824,0.5867726,65698.0,65697.0,0.0055]
[1727609332027,0.5877726,65698.0,65697.0,0.0055]
[1727609332831,0.75613257,65698.0,65697.0,0.0055]
[1727609333033,0.5897726,65698.0,65697.0,0.0055]
[1727609333231,0.75712994,65698.0,65697.0,0.0055]
[1727609333744,0.4752,65698.0,65697.0,0.0055]
[1727609333930,0.4752,65698.0,65697.0,0.05098574]
[1727609334236,0.4752,65698.0,65697.0,0.0055]
[1727609335232,0.4752,65698.0,65697.0,0.05094284]
[1727609337138,0.4752,65698.0,65697.0,0.0055]
[1727609339626,0.1144,65698.0,65697.0,0.0055]
[1727609348639,0.22856014,65698.0,65697.0,0.0055]
[1727609351347,0.38066107,65698.0,65697.0,0.0055]
[1727609351845,0.22853742,65698.0,65697.0,0.0055]
[1727609352345,0.38066107,65698.0,65697.0,0.0055]
[1727609352933,0.22853742,65698.0,65697.0,0.0055]
[1727609353346,0.38065059,65698.0,65697.0,0.0055]
[1727609354147,0.22853742,65698.0,65697.0,0.0055]
[1727609354843,0.38067537,65698.0,65697.0,0.0055]
[1727609355547,0.26653795,65698.0,65697.0,0.0055]
[1727609355746,0.1144,65698.0,65697.0,0.0055]
[1727609360944,0.4752,65698.0,65697.0,0.0055]
[1727609361144,0.1144,65698.0,65697.0,0.0055]
[1727609361351,0.4752,65698.0,65697.0,0.0055]
[1727609363650,0.18185138,65698.0,65697.0,0.0055]
[1727609365548,0.30357491,65698.0,65697.0,0.0055]
[1727609366053,0.18185138,65698.0,65697.0,0.0055]
[1727609366249,0.30357491,65698.0,65697.0,0.0055]
[1727609366456,0.22856944,65698.0,65697.0,0.0055]
[1727609370647,0.1144,65698.0,65697.0,0.0055]
[1727609378559,0.22858576,65698.0,65697.0,0.00337608]
[1727609380456,0.1144,65698.0,65697.0,0.00337608]
[1727609380659,0.22857316,65698.0,65697.0,0.00337608]
[1727609385462,0.22854893,65698.0,65697.0,0.00337608]
[1727609385657,0.1144,65698.0,65697.0,0.00337608]
[1727609393172,0.4752,65698.0,65697.0,0.00337608]
[1727609393860,0.58937325,65698.0,65691.0,0.0035]
[1727609394063,0.0004,65692.0,65687.0,0.0035]
[1727609394266,0.16791672,65690.0,65685.0,0.0325]
[1727609394569,0.29208997,65690.0,65685.0,0.0325]
[1727609395164,0.12457325,65690.0,65685.0,0.0325]
[1727609395363,0.12457325,65690.0,65689.0,0.3917]
[1727609395669,0.29208997,65690.0,65689.0,0.3917]
[1727609396757,0.29408997,65690.0,65689.0,0.3927]
[1727609397171,0.29408997,65690.0,65689.0,0.0319]
[1727609397365,0.29408997,65690.0,65689.0,0.3927]
[1727609397571,0.29708997,65690.0,65689.0,0.3937]
[1727609397864,0.29708997,65690.0,65689.0,0.0329]
[1727609398065,0.12957325,65690.0,65689.0,0.3937]
[1727609400273,0.1295126,65690.0,65689.0,0.3937]
[1727609400675,0.0004,65698.0,65689.0,0.62505638]
[1727609400874,0.1004,65698.0,65695.0,0.07587161]
[1727609401872,0.1004,65698.0,65696.0,0.18129785]
[1727609402076,0.1024,65698.0,65696.0,0.07587161]
[1727609402464,0.1044,65698.0,65696.0,0.07587161]
[1727609403173,0.1024,65698.0,65696.0,0.07687161]
[1727609403472,0.1044,65698.0,65696.0,0.07687161]
[1727609404480,0.1024,65698.0,65696.0,0.07687161]
[1727609404777,0.1024,65698.0,65696.0,0.07787161]
[1727609404962,0.1024,65698.0,65696.0,0.002]
[1727609405576,0.1024,65698.0,65696.0,0.07787161]
[1727609406680,0.1024,65698.0,65696.0,0.002]
[1727609407089,0.1024,65698.0,65696.0,0.07787161]
[1727609407267,0.1024,65698.0,65696.0,0.002]
[1727609409080,0.1024,65698.0,65692.0,0.02602085]
[1727609409379,0.39102696,65697.0,65691.0,0.0035]
[1727609409583,0.0004,65693.0,65687.0,0.007]
[1727609409776,0.3612,65688.0,65687.0,0.007]
[1727609409971,0.4512,65688.0,65683.0,0.00228369]
[1727609410175,0.0004,65684.0,65683.0,0.00228369]
[1727609410367,0.0504,65684.0,65683.0,0.00228369]
[1727609413478,0.0524,65684.0,65683.0,0.00228369]
[1727609415189,0.0514,65684.0,65683.0,0.00228369]
[1727609416378,0.11865739,65684.0,65683.0,0.00228369]
[1727609416578,0.08137998,65684.0,65683.0,0.00228369]
[1727609416973,0.44217998,65684.0,65683.0,0.00228369]
[1727609418272,0.08137755,65684.0,65683.0,0.00228369]
[1727609418478,0.44217755,65684.0,65683.0,0.00228369]
[1727609418678,0.5476159,65684.0,65683.0,0.00228369]
[1727609418983,0.5486159,65684.0,65683.0,0.00228369]
[1727609419384,0.54861649,65684.0,65683.0,0.00228369]
[1727609420284,0.44217814,65684.0,65683.0,0.00228369]
[1727609420477,0.54860996,65684.0,65683.0,0.00228369]
[1727609420781,0.54860898,65684.0,65683.0,0.00228369]
[1727609420982,0.47945665,65684.0,65683.0,0.00228369]
[1727609423287,0.47931015,65684.0,65683.0,0.00228369]
[1727609423788,0.4122,65684.0,65683.0,0.06297816]
[1727609424890,0.4122,65684.0,65683.0,0.00228369]
[1727609425186,0.4122,65684.0,65683.0,0.06290403]
[1727609428588,0.4122,65684.0,65682.0,0.06062034]
[1727609428782,0.0004,65683.0,65679.0,0.06062034]
[1727609428984,0.2065,65683.0,65678.0,0.06412034]
[1727609429185,0.0004,65679.0,65678.0,0.0035]
[1727609429384,0.1004,65679.0,65675.0,0.06062034]
[1727609429696,0.3612,65676.0,65675.0,0.06062034]
[1727609429992,0.4312,65676.0,65675.0,0.06062034]
[1727609430190,0.4312,65676.0,65674.0,0.06062034]
[1727609430393,0.4306,65676.0,65674.0,0.06062034]
[1727609430591,0.4306,65676.0,65673.0,0.06062034]
[1727609430787,0.0004,65674.0,65673.0,0.06062034]
[1727609430992,0.0904,65674.0,65673.0,0.06062034]
[1727609431584,0.0904,65674.0,65672.0,0.06062034]
[1727609431786,0.0004,65673.0,65672.0,0.06062034]
[1727609431980,0.0704,65673.0,65669.0,0.08165578]
[1727609432187,0.0004,65670.0,65669.0,0.08165578]
[1727609432388,0.0304,65670.0,65669.0,0.18410736]
[1727609432693,0.0264,65670.0,65669.0,0.07815578]
[1727609433194,0.0214,65670.0,65669.0,0.18410586]
[1727609433495,0.0214,65670.0,65669.0,0.1940966]
[1727609434493,0.0214,65670.0,65669.0,0.19398916]
[1727609434694,0.0224,65670.0,65669.0,0.20098916]
[1727609434888,0.0224,65670.0,65669.0,0.09504834]
[1727609436490,0.0224,65670.0,65669.0,0.20101547]
[1727609437384,0.0224,65670.0,65669.0,0.1252413]
[1727609438094,0.0224,65670.0,65669.0,0.2010272]
[1727609438497,0.0224,65670.0,65669.0,0.1252413]
[1727609438798,0.0224,65670.0,65669.0,0.01928417]
[1727609445696,0.0224,65670.0,65669.0,0.12529279]
[1727609445902,0.07,65670.0,65669.0,0.12529279]
[1727609448208,0.07,65670.0,65669.0,0.15289506]
[1727609448593,0.04,65670.0,65669.0,0.15289506]
[1727609451423,0.04,65670.0,65669.0,0.243941]
[1727609451624,0.04,65670.0,65669.0,0.15289506]
[1727609451930,0.04,65670.0,65669.0,0.15279949]
[1727609453719,0.04,65670.0,65669.0,0.04688644]
[1727609460929,0.04,65670.0,65669.0,0.27942502]
[1727609461138,0.04,65670.0,65669.0,0.24414699]
[1727609461431,0.04,65670.0,65669.0,0.15297341]
[1727609462034,0.04,65670.0,65669.0,0.24414477]
[1727609463840,0.04,65670.0,65669.0,0.15297341]
[1727609464239,0.04,65670.0,65669.0,0.12537114]
[1727609465740,0.04,65670.0,65669.0,0.21654042]
[1727609466138,0.04,65670.0,65669.0,0.12537114]
[1727609468732,0.04,65670.0,65669.0,0.25184574]
[1727609468934,0.04,65670.0,65669.0,0.01928417]
[1727609475939,0.04,65670.0,65669.0,0.25192807]
[1727609479852,0.04,65670.0,65669.0,0.25191056]
[1727609485045,0.4008,65670.0,65669.0,0.25191056]
[1727609487255,0.4008,65670.0,65669.0,0.1254112]
[1727609488748,0.04,65670.0,65669.0,0.1254112]
[1727609489451,0.4008,65670.0,65669.0,0.1254112]
[1727609489656,0.4008,65670.0,65669.0,0.125381]
[1727609489853,0.04,65670.0,65669.0,0.125381]
[1727609490045,0.4008,65670.0,65669.0,0.125381]
[1727609490251,0.04,65670.0,65669.0,0.125381]
[1727609490760,0.36270832,65670.0,65669.0,0.125381]
[1727609490961,0.36270832,65670.0,65669.0,0.01928417]
[1727609493546,0.00190832,65670.0,65669.0,0.01928417]
[1727609494053,0.36270832,65670.0,65669.0,0.01928417]
[1727609494746,0.39266911,65670.0,65669.0,0.01928417]
[1727609495343,0.36270832,65670.0,65669.0,0.01928417]
[1727609496059,0.39265839,65670.0,65669.0,0.01928417]
[1727609496260,0.03185839,65670.0,65669.0,0.01928417]
[1727609496650,0.39265839,65670.0,65669.0,0.01928417]
[1727609497057,0.03185839,65670.0,65669.0,0.01928417]
[1727609497265,0.36270832,65670.0,65669.0,0.01928417]
[1727609497461,0.00190832,65670.0,65669.0,0.01928417]
[1727609497750,0.03186626,65670.0,65669.0,0.01928417]
[1727609497966,0.39266626,65670.0,65669.0,0.01928417]
[1727609498650,0.36270832,65670.0,65669.0,0.01928417]
[1727609498860,0.00190832,65670.0,65669.0,0.01928417]
[1727609499156,0.36270832,65670.0,65669.0,0.12512505]
[1727609499366,0.00190832,65670.0,65669.0,0.12512505]
[1727609499552,0.36270832,65670.0,65669.0,0.12512505]
[1727609499861,0.00190832,65670.0,65669.0,0.12512505]
[1727609500255,0.36270832,65670.0,65669.0,0.12512505]
[1727609500456,0.36270832,65670.0,65669.0,0.25129011]
[1727609503052,0.00190832,65670.0,65669.0,0.25129011]
[1727609503254,0.36270832,65670.0,65669.0,0.25129011]
[1727609503454,0.00190832,65670.0,65669.0,0.25129011]
[1727609503862,0.36270832,65670.0,65669.0,0.25129011]
[1727609504163,0.00190832,65670.0,65669.0,0.25129011]
[1727609504359,0.36270832,65670.0,65669.0,0.2513141]
[1727609505062,0.00190832,65670.0,65669.0,0.2513141]
[1727609505263,0.36270832,65670.0,65669.0,0.2513141]
[1727609505658,0.00190832,65670.0,65669.0,0.2513141]
[1727609505963,0.36270832,65670.0,65669.0,0.01928417]
[1727609506161,0.00190832,65670.0,65669.0,0.01928417]
[1727609506358,0.36270832,65670.0,65669.0,0.01928417]
[1727609507258,0.00190832,65670.0,65669.0,0.01928417]
[1727609507458,0.36270832,65670.0,65669.0,0.01928417]
[1727609507661,0.00190832,65670.0,65669.0,0.01928417]
[1727609507862,0.36270832,65670.0,65669.0,0.01928417]
[1727609508068,0.0039,65674.0,65669.0,0.01928417]
[1727609508371,0.1039,65674.0,65673.0,0.06077771]
[1727609508567,0.1004,65674.0,65673.0,0.06077771]
[1727609509254,0.1004,65674.0,65672.0,0.06077771]
[1727609509456,0.0004,65673.0,65672.0,0.06077771]
[1727609509659,0.0104,65673.0,65672.0,0.06077771]
[1727609510056,0.0044,65673.0,65672.0,0.06077771]
[1727609510369,0.0044,65673.0,65670.0,0.07597327]
[1727609510563,0.0004,65671.0,65669.0,0.08525744]
[1727609510765,0.0004,65670.0,65669.0,0.08525744]
[1727609510967,0.0004,65670.0,65669.0,0.19106357]
[1727609511470,0.0004,65671.0,65670.0,0.0056]
[1727609512167,0.001,65670.0,65669.0,0.08525744]
[1727609512470,0.001,65673.0,65672.0,0.0056]
[1727609512669,0.001,65673.0,65672.0,0.06634739]
[1727609512868,0.01,65673.0,65672.0,0.06074739]
[1727609513461,0.01,65673.0,65669.0,0.00928417]
[1727609513462,0.001,65670.0,65669.0,0.09425744]
[1727609513768,0.001,65671.0,65670.0,0.0046]
[1727609513968,0.0039,65674.0,65670.0,0.23648068]
[1727609514168,0.1139,65674.0,65671.0,0.23188068]
[1727609514370,0.1139,65674.0,65673.0,0.09111287]
[1727609514670,0.1104,65674.0,65673.0,0.1968997]
[1727609515366,0.1104,65674.0,65673.0,0.09111287]
[1727609515566,0.1104,65674.0,65673.0,0.19688496]
[1727609517471,0.1104,65674.0,65673.0,0.20188496]
[1727609518565,0.1104,65674.0,65673.0,0.20588496]
[1727609521361,0.1104,65674.0,65673.0,0.11477209]
[1727609521963,0.4712,65674.0,65673.0,0.11477209]
[1727609522377,0.4712,65674.0,65673.0,0.11482512]
[1727609529067,0.4712,65674.0,65673.0,0.009]
[1727609535986,0.4708,65674.0,65673.0,0.11484457]
[1727609536195,0.43310901,65674.0,65673.0,0.11484457]
[1727609537389,0.43310901,65674.0,65673.0,0.11456774]
[1727609538488,0.07230901,65674.0,65673.0,0.11456774]
[1727609538679,0.43310901,65674.0,65673.0,0.11456774]
[1727609539777,0.43310901,65674.0,65673.0,0.11458038]
[1727609540385,0.07230901,65674.0,65673.0,0.11458038]
[1727609540690,0.43310901,65674.0,65673.0,0.11458038]
[1727609542080,0.43310901,65674.0,65673.0,0.1145657]
[1727609543283,0.07230901,65674.0,65673.0,0.1145657]
[1727609543485,0.43310901,65674.0,65673.0,0.1145657]
[1727609544094,0.43310901,65674.0,65673.0,0.009]
[1727609544699,0.07230901,65674.0,65673.0,0.009]
[1727609544883,0.43310901,65674.0,65673.0,0.009]
[1727609550898,0.07230901,65674.0,65673.0,0.009]
[1727609551090,0.07230901,65674.0,65673.0,0.1145834]
[1727609551600,0.43310901,65674.0,65673.0,0.1145834]
[1727609551894,0.43310901,65674.0,65673.0,0.11458947]
[1727609552887,0.07230901,65674.0,65673.0,0.11458947]
[1727609553195,0.07230901,65674.0,65673.0,0.20570234]
[1727609553697,0.43310901,65674.0,65673.0,0.20570234]
[1727609554394,0.07230901,65674.0,65673.0,0.20570234]
[1727609554790,0.43310901,65674.0,65673.0,0.20570234]
[1727609555800,0.07230901,65674.0,65673.0,0.20570234]
[1727609555998,0.43310901,65674.0,65673.0,0.20570234]
[1727609556494,0.07230901,65674.0,65673.0,0.20570234]
[1727609556698,0.43310901,65674.0,65673.0,0.20570234]
[1727609557697,0.07230901,65674.0,65673.0,0.20570234]
[1727609558402,0.43310901,65674.0,65673.0,0.20570234]
[1727609558793,0.07230901,65674.0,65673.0,0.11458947]
[1727609558993,0.43310901,65674.0,65673.0,0.11458947]
[1727609559195,0.46332888,65674.0,65673.0,0.009]
[1727609559797,0.10252888,65674.0,65673.0,0.009]
[1727609560302,0.46332888,65674.0,65673.0,0.009]
[1727609560799,0.10252888,65674.0,65673.0,0.009]
[1727609561286,0.46332888,65674.0,65673.0,0.009]
[1727609562102,0.10252888,65674.0,65673.0,0.009]
[1727609562287,0.46332888,65674.0,65673.0,0.009]
[1727609566201,0.46332888,65674.0,65673.0,0.11463664]
[1727609566202,0.43310901,65674.0,65673.0,0.11463664]
[1727609570796,0.07230901,65674.0,65673.0,0.11463664]
[1727609571210,0.43310901,65674.0,65673.0,0.11463664]
[1727609572608,0.07230901,65674.0,65673.0,0.11463664]
[1727609573305,0.43310901,65674.0,65673.0,0.11463664]
[1727609574105,0.46337262,65674.0,65673.0,0.009]
[1727609575814,0.10257262,65674.0,65673.0,0.009]
[1727609576001,0.46337262,65674.0,65673.0,0.009]
[1727609576511,0.46336101,65674.0,65673.0,0.009]
[1727609580809,0.46335843,65674.0,65673.0,0.009]
[1727609581213,0.43310901,65674.0,65673.0,0.19046932]
[1727609581510,0.43310901,65674.0,65673.0,0.11453251]
[1727609581711,0.07230901,65674.0,65673.0,0.11453251]
[1727609581908,0.0004,65676.0,65673.0,0.47533251]
[1727609582105,0.0004,65676.0,65675.0,0.07592987]
[1727609582306,0.0004,65676.0,65675.0,0.18146238]
[1727609582614,0.0035,65678.0,65675.0,0.22744538]
[1727609582910,0.0035,65678.0,65676.0,0.10553251]
[1727609583108,0.0035,65678.0,65677.0,0.10553251]
[1727609583313,0.0004,65679.0,65677.0,0.10553251]
[1727609583615,0.0004,65679.0,65678.0,0.13863251]
[1727609584314,0.0004,65679.0,65678.0,0.13831319]
[1727609585504,0.0014,65679.0,65678.0,0.13831319]
[1727609585707,0.0034,65679.0,65678.0,0.13831319]
[1727609586814,0.0034,65679.0,65678.0,0.22942606]
[1727609587222,0.0034,65679.0,65678.0,0.13831319]
[1727609589214,0.0034,65679.0,65678.0,0.0331]
[1727609602328,0.0034,65679.0,65678.0,0.05690091]
[1727609602626,0.0034,65679.0,65678.0,0.0331]
[1727609603314,0.0004,65684.0,65678.0,0.26245265]
[1727609603520,0.0004,65684.0,65680.0,0.45165337]
[1727609603724,0.0004,65684.0,65681.0,0.10463351]
[1727609603919,0.0004,65684.0,65680.0,0.45165337]
[1727609603920,0.0004,65684.0,65682.0,0.10463351]
[1727609604122,0.0004,65684.0,65683.0,0.10463351]
[1727609604721,0.0024,65684.0,65683.0,0.10463351]
[1727609605422,0.0074,65684.0,65683.0,0.10563351]
[1727609606029,0.0104,65684.0,65683.0,0.10563351]
[1727609606619,0.0134,65684.0,65683.0,0.10663351]
[1727609608428,0.0134,65684.0,65683.0,0.10654243]
[1727609614737,0.0434,65684.0,65683.0,0.10654243]
[1727609616436,0.0434,65684.0,65683.0,0.1973958]
[1727609618331,0.0434,65684.0,65683.0,0.002]
[1727609618332,0.14981303,65684.0,65683.0,0.002]
[1727609618535,0.18084998,65684.0,65683.0,0.002]
[1727609619831,0.07443695,65684.0,65683.0,0.002]
[1727609620251,0.18084998,65684.0,65683.0,0.002]
[1727609621536,0.07443695,65684.0,65683.0,0.002]
[1727609621833,0.11171277,65684.0,65683.0,0.002]
[1727609622645,0.07443695,65684.0,65683.0,0.002]
[1727609622948,0.14994156,65684.0,65683.0,0.002]
[1727609623251,0.18097851,65684.0,65683.0,0.002]
[1727609623547,0.07443695,65684.0,65683.0,0.002]
[1727609623741,0.11171258,65684.0,65683.0,0.002]
[1727609624852,0.07443695,65684.0,65683.0,0.002]
[1727609625046,0.11171286,65684.0,65683.0,0.002]
[1727609625348,0.07443695,65684.0,65683.0,0.002]
[1727609625741,0.11171267,65684.0,65683.0,0.002]
[1727609626453,0.11171267,65684.0,65683.0,0.10681708]
[1727609626454,0.0434,65684.0,65683.0,0.10681708]
[1727609627350,0.0434,65684.0,65683.0,0.23174783]
[1727609627551,0.0053174,65684.0,65683.0,0.23174783]
[1727609628345,0.0053174,65684.0,65683.0,0.10681708]
[1727609629142,0.0053174,65684.0,65683.0,0.23141894]
[1727609629850,0.0053174,65684.0,65683.0,0.10681708]
[1727609631337,0.0053174,65684.0,65683.0,0.23141812]
[1727609632145,0.0053174,65684.0,65683.0,0.10681708]
[1727609632442,0.0053174,65684.0,65683.0,0.23142334]
[1727609633355,0.0053174,65684.0,65683.0,0.002]
[1727609633556,0.03669555,65684.0,65683.0,0.002]
[1727609641049,0.03669075,65684.0,65683.0,0.002]
[1727609641451,0.0053174,65684.0,65683.0,0.10656036]
[1727609645445,0.0053174,65684.0,65683.0,0.2311926]
[1727609645646,0.0053174,65684.0,65683.0,0.23119241]
[1727609648360,0.0053174,65684.0,65683.0,0.002]
[1727609648550,0.03672087,65684.0,65683.0,0.002]
[1727609650862,0.03669941,65684.0,65683.0,0.002]
[1727609655876,0.03670808,65684.0,65683.0,0.002]
[1727609656575,0.0053174,65684.0,65683.0,0.23115736]
[1727609659164,0.10658916,65685.0,65683.0,0.10654442]
[1727609659364,0.10658916,65685.0,65684.0,0.10454442]
[1727609659970,0.10658916,65685.0,65684.0,0.10455202]
[1727609661275,0.3608,65687.0,65684.0,0.10455202]
[1727609661476,0.3808,65687.0,65685.0,0.19564293]
[1727609661775,0.3808,65687.0,65686.0,0.10455202]
[1727609662778,0.3848,65687.0,65686.0,0.10455202]
[1727609663377,0.41617327,65687.0,65685.0,0.002]
[1727609663573,0.03137327,65686.0,65685.0,0.001]
[1727609663769,0.04177327,65686.0,65685.0,0.001]
[1727609664672,0.03177327,65686.0,65685.0,0.001]
[1727609665179,0.03177327,65686.0,65685.0,0.002]
[1727609665370,0.03177327,65686.0,65685.0,0.001]
[1727609665865,0.13839176,65686.0,65685.0,0.001]
[1727609666065,0.14239176,65686.0,65685.0,0.002]
[1727609666268,0.03577327,65686.0,65685.0,0.002]
[1727609668282,0.14239176,65686.0,65685.0,0.002]
[1727609670179,0.03577327,65686.0,65685.0,0.002]
[1727609670575,0.03587779,65686.0,65685.0,0.002]
[1727609671472,0.0044,65686.0,65685.0,0.19756165]
[1727609672476,0.0004,65688.0,65685.0,0.19756165]
[1727609672676,0.0304,65688.0,65686.0,0.10447074]
[1727609672979,0.0304,65688.0,65687.0,0.10447074]
[1727609674775,0.0314,65688.0,65687.0,0.10447074]
[1727609675174,0.0314,65688.0,65687.0,0.10440031]
[1727609675474,0.0314,65688.0,65687.0,0.10540031]
[1727609676185,0.0314,65688.0,65687.0,0.19646127]
[1727609676387,0.0314,65688.0,65687.0,0.19746127]
[1727609678489,0.0314,65688.0,65687.0,0.10640031]
[1727609686491,0.0314,65688.0,65687.0,0.002]
[1727609686492,0.15323368,65688.0,65687.0,0.002]
[1727609686688,0.10022336,65688.0,65687.0,0.002]
[1727609687287,0.15320089,65688.0,65687.0,0.002]
[1727609687591,0.22202425,65688.0,65687.0,0.002]
[1727609687793,0.10022336,65688.0,65687.0,0.002]
[1727609690082,0.10024701,65688.0,65687.0,0.002]
[1727609693587,0.0314,65688.0,65687.0,0.10634964]
[1727609699800,0.0314,65688.0,65687.0,0.1063702]
[1727609705601,0.0314,65688.0,65687.0,0.23079808]
[1727609707210,0.0314,65688.0,65687.0,0.1063702]
[1727609708293,0.0314,65688.0,65687.0,0.10632967]
[1727609708510,0.0314,65688.0,65687.0,0.002]
[1727609708703,0.10025502,65688.0,65687.0,0.002]
[1727609712005,0.22206612,65688.0,65687.0,0.002]
[1727609716610,0.22206612,65688.0,65687.0,0.19741534]
[1727609716611,0.1532111,65688.0,65687.0,0.19741534]
[1727609717511,0.1218111,65688.0,65687.0,0.19741534]
[1727609717716,0.1418111,65688.0,65687.0,0.19741534]
[1727609718020,0.1418111,65688.0,65687.0,0.19719309]
[1727609720322,0.1418111,65688.0,65687.0,0.19719613]
[1727609722116,0.02,65688.0,65687.0,0.19719613]
[1727609722821,0.02,65688.0,65687.0,0.1971919]
[1727609723614,0.1357897,65688.0,65687.0,0.002]
[1727609723913,0.15706289,65688.0,65687.0,0.002]
[1727609724121,0.1357897,65688.0,65687.0,0.002]
[1727609725526,0.15703321,65688.0,65687.0,0.002]
[1727609725715,0.18882808,65688.0,65687.0,0.002]
[1727609725913,0.19430739,65688.0,65687.0,0.002]
[1727609726116,0.27282291,65688.0,65687.0,0.002]
[1727609727630,0.1357897,65688.0,65687.0,0.002]
[1727609727924,0.1357829,65688.0,65687.0,0.002]
[1727609730727,0.15703896,65688.0,65687.0,0.002]
[1727609731040,0.27282186,65688.0,65687.0,0.002]
[1727609731622,0.15703896,65688.0,65687.0,0.197181]
[1727609732424,0.02,65688.0,65687.0,0.197181]
[1727609734021,0.02,65688.0,65687.0,0.10613261]
[1727609738022,0.02,65688.0,65687.0,0.24731668]
[1727609738228,0.0004,65693.0,65687.0,0.10613261]
[1727609738424,0.0004,65693.0,65688.0,0.63621162]
[1727609738625,0.0004,65693.0,65689.0,0.14117901]
[1727609738830,0.0004,65693.0,65691.0,0.06069808]
[1727609740224,0.0004,65693.0,65690.0,0.06069808]
[1727609740525,0.0004,65691.0,65690.0,0.06069808]
[1727609741230,0.0004,65691.0,65689.0,0.06069808]
[1727609741426,0.0004,65690.0,65689.0,0.06069808]
[1727609742024,0.0004,65690.0,65689.0,0.42149808]
[1727609743132,0.0004,65690.0,65689.0,0.42249808]
[1727609743332,0.0004,65690.0,65689.0,0.3628]
[1727609746636,0.0039,65698.0,65689.0,0.61993905]
[1727609746836,0.0239,65698.0,65690.0,0.25713905]
[1727609747038,0.0204,65698.0,65691.0,0.25713905]
[1727609747331,0.0204,65698.0,65692.0,0.25713905]
[1727609747535,0.0204,65698.0,65693.0,0.25713905]
[1727609747736,0.0204,65698.0,65694.0,0.25713905]
[1727609748034,0.0204,65698.0,65695.0,0.25713905]
[1727609748244,0.0204,65698.0,65696.0,0.25713905]
[1727609748541,0.0204,65698.0,65697.0,0.11597624]
[1727609750036,0.0204,65698.0,65697.0,0.11697624]
[1727609750625,0.0204,65698.0,65697.0,0.11797624]
[1727609753842,0.0204,65698.0,65697.0,0.002]
[1727609761838,0.06,65698.0,65697.0,0.25914047]
[1727609762552,0.02192486,65698.0,65697.0,0.25914047]
[1727609765349,0.02192486,65698.0,65697.0,0.25914045]
[1727609768259,0.02192486,65698.0,65697.0,0.53036899]
[1727609770258,0.02192486,65698.0,65697.0,0.53036919]
[1727609772564,0.02192486,65698.0,65697.0,0.42424549]
[1727609772962,0.02192486,65698.0,65697.0,0.53040036]
[1727609773360,0.02192486,65698.0,65697.0,0.42424549]
[1727609776767,0.04,65698.0,65697.0,0.07783483]
[1727609777470,0.04,65698.0,65697.0,0.002]
[1727609787769,0.04,65698.0,65697.0,0.2591406]
[1727609790984,0.04,65698.0,65697.0,0.002]
[1727609796980,0.04,65698.0,65697.0,0.07783797]
[1727609798885,0.04,65698.0,65697.0,0.2591406]
[1727609805987,0.04,65698.0,65697.0,0.25914062]
[1727609806894,0.04,65698.0,65697.0,0.07783683]
[1727609806895,0.01,65698.0,65697.0,0.07783683]
[1727609807080,0.0039,65702.0,65697.0,0.07783683]
[1727609807282,0.0304,65702.0,65701.0,0.06066936]
[1727609808195,0.0004,65702.0,65698.0,0.07583683]
[1727609808385,0.0004,65699.0,65698.0,0.07583683]
[1727609808586,0.0004,65699.0,65698.0,0.11596955]
[1727609809496,0.0004,65699.0,65698.0,0.11796955]
[1727609809988,0.0004,65699.0,65698.0,0.11596955]
[1727609810292,0.0004,65699.0,65698.0,0.11796955]
[1727609810790,0.0004,65702.0,65698.0,0.11796955]
[1727609810987,0.0004,65702.0,65701.0,0.07577078]
[1727609811187,0.0004,65702.0,65701.0,0.19173493]
[1727609811490,0.3608,65706.0,65701.0,0.11596415]
[1727609811789,0.3608,65706.0,65703.0,0.0757492]
[1727609812184,0.3608,65706.0,65702.0,0.0757492]
[1727609812399,0.3608,65706.0,65703.0,0.0321]
[1727609813289,0.3608,65706.0,65705.0,0.06057565]
[1727609813994,0.31511593,65706.0,65705.0,0.25672168]
[1727609815396,0.0035,65712.0,65705.0,0.25772168]
[1727609815599,0.3643,65714.0,65709.0,0.0908374]
[1727609815798,0.4508,65714.0,65710.0,0.1159614]
[1727609816095,0.4508,65714.0,65711.0,0.1159614]
[1727609816294,0.4508,65714.0,65709.0,0.0908374]
[1727609816295,0.4508,65714.0,65712.0,0.1159614]
[1727609816497,0.4508,65714.0,65713.0,0.1159614]
[1727609817283,0.3608,65714.0,65713.0,0.1159614]